[Event "9th RTU Rapid 2019"]
[Site "Riga"]
[Date "2019.08.04"]
[Round "7.20"]
[White "Vedrickas, Tautvydas"]
[Black "Bagatais, Janis"]
[Result "1-0"]
[WhiteElo "2231"]
[BlackElo "1946"]
[PlyCount "47"]
[EventDate "2019.08.05"]
[EventType "swiss"]
[EventCountry "LAT"]
[TimeControl "5400+30"]
[WhiteClock "0:00:11"]
[BlackClock "0:00:57"]

1. d4 {[%emt 1:15:22]} Nf6 {[%emt 1:15:22]} 2. c4 {[%emt 0:00:26]} e6 {[%emt 0:00:26]} 3. Nc3 {[%emt 0:00:35]} d5 {[%emt 0:00:28]} 4. cxd5 {[%emt 0:00:29]} Nxd5 {[%emt 0:00:33]} 5. Nf3 {[%emt 0:00:33]} Nxc3 {[%emt 0:00:31]} 6. bxc3 {[%emt 0:00:26]} c5 {[%emt 0:00:27]} 7. e3 {[%emt 0:00:38]} cxd4 {[%emt 0:00:31]} 8. exd4 {[%emt 0:00:30]} Bd6 {[%emt 0:01:26]} 9. Bd3 {[%emt 0:00:29]} h6 {[%emt 0:01:02]} 10. O-O {[%emt 0:01:05]} O-O {[%emt 0:01:14]} 11. Rb1 {[%emt 0:00:31]} Nd7 {[%emt 0:00:51]} 12. Rb5 {[%emt 0:02:30]} Nf6 {[%emt 0:00:55]} 13. Bxh6 {[%emt 0:03:32]} gxh6 {[%emt 0:04:24]} 14. Qd2 {[%emt 0:00:40]} Nd5 {[%emt 0:02:11]} 15. Qxh6 {[%emt 0:02:24]} f5 {[%emt 0:00:27]} 16. Qg6+ {[%emt 0:02:30]} Kh8 {[%emt 0:00:27]} 17. Ng5 {[%emt 0:02:17]} Qd7 {[%emt 0:03:50]} 18. Bc4 {[%emt 0:00:46]} Nc7 {[%emt 0:02:16]} 19. Re1 {[%emt 0:01:16]} Qg7 {[%emt 0:01:28]} 20. Qh5+ {[%emt 0:00:30]} Kg8 {[%emt 0:00:26]} 21. Rxb7 {[%emt 0:01:29]} Bxb7 {[%emt 0:00:51]} 22. Rxe6 {[%emt 0:00:32]} Rf7 {[%emt 0:00:47]} 23. Rxd6 {[%emt 0:01:02]} Re8 {[%emt 0:00:26]} 24. Bxf7+ {[%emt 0:00:31]} 1-0

[Event "9th RTU Rapid 2019"]
[Site "Riga"]
[Date "2019.08.04"]
[Round "7.21"]
[White "Zhukov, Anton"]
[Black "Chibukhchyan, Erik"]
[Result "0-1"]
[WhiteElo "2087"]
[BlackElo "2231"]
[PlyCount "100"]
[EventDate "2019.08.05"]
[EventType "swiss"]
[EventCountry "LAT"]
[TimeControl "5400+30"]
[WhiteClock "0:04:24"]
[BlackClock "0:07:55"]

1. d4 {[%emt 1:15:22]} Nf6 {[%emt 1:15:22]} 2. c4 {[%emt 0:00:26]} e6 {[%emt 0:00:45]} 3. Nf3 {[%emt 0:00:28]} b6 {[%emt 0:00:26]} 4. g3 {[%emt 0:00:30]} Ba6 {[%emt 0:00:28]} 5. Qc2 {[%emt 0:00:28]} c5 {[%emt 0:01:15]} 6. d5 {[%emt 0:00:26]} exd5 {[%emt 0:00:26]} 7. cxd5 {[%emt 0:00:27]} Bb7 {[%emt 0:00:26]} 8. Bg2 {[%emt 0:00:30]} Nxd5 {[%emt 0:00:40]} 9. O-O {[%emt 0:00:33]} Nc6 {[%emt 0:00:30]} 10. Rd1 {[%emt 0:00:35]} Nc7 {[%emt 0:00:35]} 11. e4 {[%emt 0:00:59]} Be7 {[%emt 0:00:28]} 12. Nc3 {[%emt 0:00:36]} O-O {[%emt 0:00:30]} 13. e5 {[%emt 0:01:07]} f6 {[%emt 0:00:58]} 14. Bf4 {[%emt 0:01:02]} Ne6 {[%emt 0:00:27]} 15. exf6 {[%emt 0:00:39]} Bxf6 {[%emt 0:00:27]} 16. Bd6 {[%emt 0:00:44]} Re8 {[%emt 0:02:52]} 17. Nd5 {[%emt 0:00:38]} Ncd4 {[%emt 0:02:31]} 18. Nxd4 {[%emt 0:02:03]} Nxd4 {[%emt 0:00:26]} 19. Qc4 {[%emt 0:00:45]} Bxd5 {[%emt 0:01:17]} 20. Qxd5+ {[%emt 0:00:38]} Kh8 {[%emt 0:00:28]} 21. Qxa8 {[%emt 0:00:32]} Qxa8 {[%emt 0:00:26]} 22. Bxa8 {[%emt 0:00:27]} Rxa8 {[%emt 0:00:26]} 23. Kg2 {[%emt 0:00:39]} Kg8 {[%emt 0:00:27]} 24. Rac1 {[%emt 0:00:44]} Nc6 {[%emt 0:01:34]} 25. b3 {[%emt 0:00:40]} Kf7 {[%emt 0:00:27]} 26. Bf4 {[%emt 0:00:33]} Bd4 {[%emt 0:00:31]} 27. Be3 {[%emt 0:00:33]} a5 {[%emt 0:00:59]} 28. Bxd4 {[%emt 0:00:49]} Nxd4 {[%emt 0:00:37]} 29. f4 {[%emt 0:00:41]} Ke6 {[%emt 0:00:52]} 30. Kf2 {[%emt 0:00:31]} Kd5 {[%emt 0:00:29]} 31. Re1 {[%emt 0:00:32]} a4 {[%emt 0:00:47]} 32. Re5+ {[%emt 0:00:39]} Kd6 {[%emt 0:00:25]} 33. b4 {[%emt 0:00:29]} Ne6 {[%emt 0:00:49]} 34. bxc5+ {[%emt 0:00:57]} bxc5 {[%emt 0:01:09]} 35. Ke3 {[%emt 0:00:46]} Rb8 {[%emt 0:01:00]} 36. Rc2 {[%emt 0:00:29]} Rb1 {[%emt 0:00:34]} 37. Kd3 {[%emt 0:00:34]} g6 {[%emt 0:01:15]} 38. Kc4 {[%emt 0:01:26]} Rb4+ {[%emt 0:00:27]} 39. Kc3 {[%emt 0:00:44]} Nd4 {[%emt 0:00:56]} 40. Kd3 {[%emt 0:00:30]} Nxc2 {[%emt 0:00:29]} 41. Kxc2 {[%emt 0:00:28]} a3 {[%emt 0:00:27]} 42. h4 {[%emt 0:00:41]} Rb2+ {[%emt 0:00:27]} 43. Kc3 {[%emt 0:00:26]} Rxa2 {[%emt 0:00:26]} 44. Kb3 {[%emt 0:00:31]} Rg2 {[%emt 0:00:26]} 45. Kxa3 {[%emt 0:00:30]} Rxg3+ {[%emt 0:00:27]} 46. Kb2 {[%emt 0:00:26]} Rg4 {[%emt 0:00:32]} 47. Re4 {[%emt 0:00:33]} Rxh4 {[%emt 0:00:27]} 48. Kc3 {[%emt 0:00:26]} g5 {[%emt 0:00:29]} 49. Kd3 {[%emt 0:00:26]} Rxf4 {[%emt 0:00:27]} 50. Re1 {[%emt 0:00:27]} h5 {[%emt 0:00:32]} 0-1

[Event "9th RTU Rapid 2019"]
[Site "Riga"]
[Date "2019.08.04"]
[Round "7.22"]
[White "Hasani, Takin"]
[Black "Bracker, Arne"]
[Result "0-1"]
[WhiteElo "1849"]
[BlackElo "2227"]
[PlyCount "90"]
[EventDate "2019.08.05"]
[EventType "swiss"]
[EventCountry "LAT"]
[TimeControl "5400+30"]
[WhiteClock "0:00:51"]
[BlackClock "0:00:27"]

1. d4 {[%emt 1:15:21]} Nf6 {[%emt 1:15:22]} 2. Bf4 {[%emt 0:00:26]} d5 {[%emt 0:00:52]} 3. e3 {[%emt 0:00:26]} e6 {[%emt 0:00:27]} 4. Nf3 {[%emt 0:00:31]} Bd6 {[%emt 0:00:29]} 5. Bg3 {[%emt 0:00:26]} O-O {[%emt 0:00:35]} 6. Nbd2 {[%emt 0:00:34]} c5 {[%emt 0:00:28]} 7. c3 {[%emt 0:00:26]} Qc7 {[%emt 0:00:29]} 8. Ne5 {[%emt 0:01:16]} b6 {[%emt 0:02:14]} 9. Bd3 {[%emt 0:01:32]} Nc6 {[%emt 0:01:06]} 10. f4 {[%emt 0:00:52]} Ne7 {[%emt 0:00:33]} 11. Qb1 {[%emt 0:00:36]} Nf5 {[%emt 0:01:06]} 12. Bf2 {[%emt 0:00:37]} Be7 {[%emt 0:01:50]} 13. O-O {[%emt 0:02:57]} c4 {[%emt 0:03:57]} 14. Bc2 {[%emt 0:00:42]} b5 {[%emt 0:00:31]} 15. g4 {[%emt 0:03:14]} Nd6 {[%emt 0:00:31]} 16. Bh4 {[%emt 0:01:42]} g6 {[%emt 0:02:26]} 17. f5 {[%emt 0:02:31]} exf5 18. gxf5 {[%emt 0:00:26]} Bxf5 {[%emt 0:01:51]} 19. Bxf5 {[%emt 0:01:19]} Nxf5 {[%emt 0:00:53]} 20. Rxf5 {[%emt 0:00:42]} gxf5 {[%emt 0:01:21]} 21. Qxf5 {[%emt 0:00:44]} Ne4 {[%emt 0:01:01]} 22. Nxe4 {[%emt 0:02:56]} dxe4 {[%emt 0:00:27]} 23. Nd7 {[%emt 0:01:05]} Bxh4 {[%emt 0:00:49]} 24. Nxf8 {[%emt 0:00:26]} Kxf8 {[%emt 0:01:06]} 25. Rf1 {[%emt 0:00:26]} f6 {[%emt 0:01:06]} 26. Qxe4 {[%emt 0:00:32]} Bg5 {[%emt 0:00:31]} 27. Qxa8+ {[%emt 0:00:27]} Kg7 {[%emt 0:00:26]} 28. Qf3 {[%emt 0:00:29]} Qe7 {[%emt 0:00:30]} 29. e4 {[%emt 0:00:27]} a5 {[%emt 0:00:34]} 30. Kh1 {[%emt 0:00:29]} b4 {[%emt 0:00:26]} 31. cxb4 {[%emt 0:00:17]} axb4 32. a3 {[%emt 0:00:54]} b3 {[%emt 0:00:54]} 33. Qg4 {[%emt 0:00:33]} Kf7 {[%emt 0:00:29]} 34. e5 {[%emt 0:00:29]} Qb7+ {[%emt 0:00:27]} 35. Qg2 {[%emt 0:00:28]} Qxg2+ 36. Kxg2 {[%emt 0:00:26]} Ke6 {[%emt 0:01:13]} 37. exf6 {[%emt 0:00:30]} Bxf6 {[%emt 0:00:26]} 38. d5+ {[%emt 0:00:30]} Ke7 {[%emt 0:00:50]} 39. d6+ {[%emt 0:00:27]} Ke6 {[%emt 0:00:26]} 40. d7 {[%emt 0:00:29]} Be7 {[%emt 0:00:27]} 41. Rd1 {[%emt 0:00:29]} Bd8 {[%emt 0:00:26]} 42. Kf3 {[%emt 0:00:31]} Ke7 {[%emt 0:00:31]} 43. Ke4 {[%emt 0:00:27]} Bb6 {[%emt 0:00:40]} 44. d8=Q+ {[%emt 0:00:29]} Bxd8 {[%emt 0:00:26]} 45. Rxd8 {[%emt 0:00:27]} Kxd8 {[%emt 0:00:27]} 0-1

[Event "9th RTU Rapid 2019"]
[Site "Riga"]
[Date "2019.08.04"]
[Round "7.23"]
[White "Low, Zhen Yu Cyrus"]
[Black "Rakshitta Ravi"]
[Result "1-0"]
[WhiteElo "2169"]
[BlackElo "2112"]
[PlyCount "99"]
[EventDate "2019.08.05"]
[EventType "swiss"]
[EventCountry "LAT"]
[TimeControl "5400+30"]
[WhiteClock "0:01:33"]
[BlackClock "0:01:34"]

1. e4 {[%emt 1:15:23]} e5 {[%emt 1:15:34]} 2. Nf3 {[%emt 0:00:26]} Nc6 {[%emt 0:00:26]} 3. Bc4 {[%emt 0:00:26]} Bc5 {[%emt 0:00:26]} 4. O-O {[%emt 0:00:27]} d6 {[%emt 0:00:27]} 5. d3 {[%emt 0:00:27]} Nf6 {[%emt 0:00:31]} 6. c3 {[%emt 0:00:26]} Bb6 {[%emt 0:00:32]} 7. Bb3 {[%emt 0:00:28]} h6 {[%emt 0:00:28]} 8. Nbd2 {[%emt 0:00:28]} Bg4 {[%emt 0:00:27]} 9. Re1 {[%emt 0:00:32]} Qd7 {[%emt 0:00:31]} 10. Nf1 {[%emt 0:00:37]} O-O-O {[%emt 0:00:50]} 11. a4 {[%emt 0:01:09]} a5 {[%emt 0:01:01]} 12. Bc4 {[%emt 0:00:40]} Nh5 {[%emt 0:00:39]} 13. Be3 {[%emt 0:00:55]} Bxe3 {[%emt 0:00:59]} 14. Nxe3 {[%emt 0:00:27]} Nf4 {[%emt 0:00:30]} 15. Bb5 {[%emt 0:02:13]} h5 {[%emt 0:00:53]} 16. Nd5 {[%emt 0:01:49]} h4 {[%emt 0:03:53]} 17. Nxf4 {[%emt 0:01:38]} exf4 {[%emt 0:00:26]} 18. h3 {[%emt 0:00:26]} Bh5 {[%emt 0:00:33]} 19. d4 {[%emt 0:00:32]} d5 {[%emt 0:00:34]} 20. Qd3 {[%emt 0:00:50]} Kb8 {[%emt 0:02:11]} 21. Nd2 {[%emt 0:02:43]} Rhe8 {[%emt 0:01:49]} 22. exd5 {[%emt 0:01:19]} Qxd5 {[%emt 0:00:30]} 23. Qc4 {[%emt 0:00:49]} Rxe1+ 24. Rxe1 {[%emt 0:00:26]} Qxc4 {[%emt 0:01:41]} 25. Bxc4 {[%emt 0:02:14]} f6 {[%emt 0:01:34]} 26. Bb5 {[%emt 0:01:29]} Na7 {[%emt 0:00:43]} 27. Be2 {[%emt 0:00:49]} Be8 {[%emt 0:01:03]} 28. Bd1 {[%emt 0:00:32]} Nc8 {[%emt 0:02:04]} 29. Re4 {[%emt 0:00:49]} Nb6 {[%emt 0:00:42]} 30. Rxf4 {[%emt 0:00:46]} Bxa4 {[%emt 0:00:51]} 31. b3 {[%emt 0:00:37]} Bc6 {[%emt 0:00:51]} 32. Rxh4 {[%emt 0:00:31]} Nd5 {[%emt 0:00:25]} 33. c4 {[%emt 0:00:52]} Nc3 {[%emt 0:00:27]} 34. Bf3 {[%emt 0:00:50]} g5 {[%emt 0:00:34]} 35. Rg4 {[%emt 0:01:14]} Bd7 {[%emt 0:00:27]} 36. Rg3 {[%emt 0:00:26]} Re8 {[%emt 0:00:25]} 37. Kf1 {[%emt 0:00:42]} Bf5 {[%emt 0:00:42]} 38. Bh5 {[%emt 0:00:28]} Rh8 {[%emt 0:00:34]} 39. Rxc3 {[%emt 0:00:26]} Rxh5 {[%emt 0:00:28]} 40. g4 {[%emt 0:00:26]} Bxg4 {[%emt 0:00:34]} 41. hxg4 {[%emt 0:00:26]} Rh1+ {[%emt 0:00:28]} 42. Ke2 {[%emt 0:00:29]} Rg1 {[%emt 0:00:32]} 43. f3 {[%emt 0:00:37]} c6 {[%emt 0:00:31]} 44. Ne4 {[%emt 0:00:27]} b5 {[%emt 0:00:28]} 45. cxb5 {[%emt 0:00:27]} cxb5 {[%emt 0:00:25]} 46. Rc5 {[%emt 0:00:26]} Rg2+ {[%emt 0:00:50]} 47. Ke3 {[%emt 0:00:27]} Rb2 {[%emt 0:00:36]} 48. Rxb5+ {[%emt 0:00:26]} Kc7 {[%emt 0:00:26]} 49. Rxa5 {[%emt 0:00:28]} Rxb3+ {[%emt 0:00:26]} 50. Kf2 {[%emt 0:00:26]} 1-0

[Event "9th RTU Rapid 2019"]
[Site "Riga"]
[Date "2019.08.04"]
[Round "7.24"]
[White "Nair, Sanjeev"]
[Black "Petrovskis, Olegs"]
[Result "1-0"]
[WhiteElo "1841"]
[BlackElo "2147"]
[PlyCount "131"]
[EventDate "2019.08.05"]
[EventType "swiss"]
[EventCountry "LAT"]
[TimeControl "5400+30"]
[WhiteClock "0:00:43"]
[BlackClock "0:01:41"]

1. e4 {[%emt 1:15:23]} c5 {[%emt 1:15:20]} 2. Nf3 {[%emt 0:00:27]} d6 {[%emt 0:00:26]} 3. d4 {[%emt 0:00:26]} cxd4 {[%emt 0:00:26]} 4. Nxd4 {[%emt 0:00:27]} Nf6 {[%emt 0:00:26]} 5. Nc3 {[%emt 0:00:01]} a6 6. h3 {[%emt 0:00:53]} e5 {[%emt 0:00:52]} 7. Nde2 {[%emt 0:00:27]} Be7 {[%emt 0:00:30]} 8. g4 {[%emt 0:00:26]} h6 {[%emt 0:00:30]} 9. Bg2 {[%emt 0:00:27]} b5 {[%emt 0:00:38]} 10. O-O {[%emt 0:01:48]} Bb7 {[%emt 0:00:34]} 11. Ng3 {[%emt 0:00:40]} b4 {[%emt 0:00:59]} 12. Nd5 {[%emt 0:00:28]} Nxd5 {[%emt 0:00:38]} 13. exd5 {[%emt 0:00:27]} Bf6 {[%emt 0:01:07]} 14. a3 {[%emt 0:00:57]} bxa3 {[%emt 0:01:10]} 15. Rxa3 {[%emt 0:00:28]} Nd7 {[%emt 0:01:08]} 16. Nf5 {[%emt 0:01:39]} Nb6 {[%emt 0:01:58]} 17. Rb3 {[%emt 0:01:12]} Bc8 {[%emt 0:00:26]} 18. Qd3 {[%emt 0:01:28]} Bxf5 {[%emt 0:01:17]} 19. Qxf5 {[%emt 0:00:41]} Nd7 {[%emt 0:00:44]} 20. Be3 {[%emt 0:01:36]} g6 {[%emt 0:00:28]} 21. Qd3 {[%emt 0:00:40]} Bg5 {[%emt 0:00:38]} 22. Ra1 {[%emt 0:03:02]} O-O {[%emt 0:00:51]} 23. Rba3 {[%emt 0:00:45]} Bxe3 {[%emt 0:07:02]} 24. Qxe3 {[%emt 0:00:04]} Qc8 25. Qxh6 {[%emt 0:02:08]} Qxc2 {[%emt 0:01:21]} 26. Rxa6 {[%emt 0:00:57]} Rxa6 {[%emt 0:00:38]} 27. Rxa6 {[%emt 0:00:28]} Qc7 {[%emt 0:01:09]} 28. h4 {[%emt 0:02:31]} Nf6 {[%emt 0:02:06]} 29. Qg5 {[%emt 0:00:28]} Nh7 {[%emt 0:00:37]} 30. Qe3 {[%emt 0:00:40]} Qe7 {[%emt 0:00:26]} 31. g5 {[%emt 0:00:31]} Rd8 {[%emt 0:00:43]} 32. Bh3 {[%emt 0:00:40]} Qb7 {[%emt 0:00:29]} 33. Qb6 {[%emt 0:00:59]} Qxb6 {[%emt 0:00:35]} 34. Rxb6 {[%emt 0:00:27]} f6 {[%emt 0:00:26]} 35. Be6+ {[%emt 0:00:41]} Kh8 {[%emt 0:00:26]} 36. gxf6 {[%emt 0:00:43]} Nxf6 {[%emt 0:00:25]} 37. b4 {[%emt 0:00:27]} Ne4 {[%emt 0:00:27]} 38. Rc6 {[%emt 0:00:40]} Rb8 {[%emt 0:00:32]} 39. Rc8+ {[%emt 0:00:26]} Rxc8 {[%emt 0:00:29]} 40. Bxc8 {[%emt 0:00:26]} Nc3 {[%emt 0:00:30]} 41. Bb7 {[%emt 0:00:32]} Na4 {[%emt 0:00:31]} 42. Bc6 {[%emt 0:00:33]} Nb6 {[%emt 0:00:26]} 43. Kg2 {[%emt 0:00:26]} Kg7 {[%emt 0:00:26]} 44. Kf3 {[%emt 0:00:26]} Kf6 {[%emt 0:00:27]} 45. Kg4 {[%emt 0:00:34]} Nc4 {[%emt 0:00:29]} 46. Kf3 {[%emt 0:00:53]} Nb6 {[%emt 0:00:25]} 47. Ke4 {[%emt 0:00:28]} Nc8 {[%emt 0:00:42]} 48. Kd3 {[%emt 0:00:26]} Nb6 {[%emt 0:00:28]} 49. b5 {[%emt 0:00:39]} Kf5 {[%emt 0:00:26]} 50. Kc3 {[%emt 0:00:57]} Kg4 {[%emt 0:00:34]} 51. Kb4 {[%emt 0:00:27]} Kxh4 {[%emt 0:00:26]} 52. Ka5 {[%emt 0:00:26]} Nc4+ {[%emt 0:00:26]} 53. Ka6 {[%emt 0:00:26]} Kg4 {[%emt 0:00:29]} 54. b6 {[%emt 0:00:30]} Nxb6 55. Kxb6 {[%emt 0:00:26]} Kf3 {[%emt 0:00:53]} 56. Kc7 {[%emt 0:00:28]} Kxf2 {[%emt 0:00:28]} 57. Kxd6 {[%emt 0:00:28]} e4 {[%emt 0:00:25]} 58. Kc5 {[%emt 0:00:29]} g5 {[%emt 0:01:00]} 59. d6 {[%emt 0:00:26]} e3 {[%emt 0:00:26]} 60. Bb5 {[%emt 0:00:26]} e2 61. Bxe2 {[%emt 0:00:26]} Kxe2 {[%emt 0:01:03]} 62. d7 {[%emt 0:00:26]} g4 {[%emt 0:00:27]} 63. d8=Q {[%emt 0:00:27]} g3 {[%emt 0:00:26]} 64. Qd4 {[%emt 0:00:38]} Kf1 {[%emt 0:00:30]} 65. Qf4+ {[%emt 0:00:26]} Kg2 {[%emt 0:00:27]} 66. Kd4 {[%emt 0:00:26]} 1-0

[Event "9th RTU Rapid 2019"]
[Site "Riga"]
[Date "2019.08.04"]
[Round "7.25"]
[White "Solys, Laimutis"]
[Black "Mohite, Ranveer"]
[Result "1-0"]
[WhiteElo "2143"]
[BlackElo "1935"]
[PlyCount "95"]
[EventDate "2019.08.05"]
[EventType "swiss"]
[EventCountry "LAT"]
[TimeControl "5400+30"]
[WhiteClock "0:00:07"]
[BlackClock "0:03:15"]

1. e4 {[%emt 1:15:22]} e5 {[%emt 1:15:32]} 2. Nf3 {[%emt 0:00:27]} Nc6 {[%emt 0:00:27]} 3. Bb5 {[%emt 0:00:27]} a6 {[%emt 0:00:26]} 4. Ba4 {[%emt 0:00:26]} Nf6 {[%emt 0:00:27]} 5. O-O {[%emt 0:00:28]} Be7 {[%emt 0:00:27]} 6. Re1 {[%emt 0:00:30]} b5 {[%emt 0:00:34]} 7. Bb3 {[%emt 0:00:26]} d6 {[%emt 0:00:26]} 8. a4 {[%emt 0:00:34]} Bd7 {[%emt 0:00:46]} 9. c3 {[%emt 0:00:55]} O-O {[%emt 0:00:33]} 10. h3 {[%emt 0:00:32]} Na5 {[%emt 0:00:58]} 11. Bc2 {[%emt 0:00:29]} c5 {[%emt 0:00:38]} 12. d4 {[%emt 0:00:55]} cxd4 {[%emt 0:00:56]} 13. cxd4 {[%emt 0:00:27]} Nc6 {[%emt 0:00:26]} 14. Nc3 {[%emt 0:01:26]} b4 {[%emt 0:01:44]} 15. Ne2 {[%emt 0:00:37]} Re8 {[%emt 0:00:47]} 16. Ng3 {[%emt 0:00:57]} g6 {[%emt 0:00:47]} 17. b3 {[%emt 0:01:08]} Bf8 {[%emt 0:01:09]} 18. Bb2 {[%emt 0:00:29]} Qb6 {[%emt 0:00:49]} 19. Qd2 {[%emt 0:00:51]} Rad8 {[%emt 0:01:17]} 20. Rad1 {[%emt 0:00:32]} Bg7 {[%emt 0:00:52]} 21. Qc1 {[%emt 0:01:14]} Rc8 {[%emt 0:03:06]} 22. Qa1 {[%emt 0:00:48]} exd4 {[%emt 0:02:27]} 23. Nxd4 {[%emt 0:00:32]} Ne5 {[%emt 0:00:27]} 24. Bb1 {[%emt 0:01:01]} h5 {[%emt 0:00:29]} 25. Kh1 {[%emt 0:00:55]} h4 {[%emt 0:00:49]} 26. Nf1 {[%emt 0:00:26]} Nh5 {[%emt 0:01:08]} 27. Ne3 {[%emt 0:00:51]} Nf4 {[%emt 0:01:00]} 28. Ne2 {[%emt 0:00:40]} Nxe2 {[%emt 0:01:28]} 29. Rxe2 {[%emt 0:00:27]} Rc3 {[%emt 0:01:55]} 30. Nd5 {[%emt 0:00:57]} Qb8 {[%emt 0:00:40]} 31. Nxc3 {[%emt 0:00:31]} bxc3 {[%emt 0:00:27]} 32. Bxc3 {[%emt 0:00:27]} Bh6 {[%emt 0:01:03]} 33. Bc2 {[%emt 0:01:03]} Qc8 {[%emt 0:00:32]} 34. Bb4 {[%emt 0:00:42]} Bxh3 {[%emt 0:00:35]} 35. f3 {[%emt 0:02:11]} Bxg2+ {[%emt 0:00:28]} 36. Kxg2 {[%emt 0:00:34]} Nxf3 {[%emt 0:00:27]} 37. Bxd6 {[%emt 0:01:24]} Qg4+ {[%emt 0:00:43]} 38. Kf2 {[%emt 0:00:26]} Bg7 {[%emt 0:00:43]} 39. Qc1 {[%emt 0:01:26]} Nd4 {[%emt 0:00:36]} 40. Qe3 {[%emt 0:01:01]} Nxe2 {[%emt 0:00:33]} 41. Qxe2 {[%emt 0:00:31]} Qg5 {[%emt 0:00:32]} 42. Qf3 {[%emt 0:00:45]} Rc8 {[%emt 0:00:28]} 43. Bd3 {[%emt 0:01:00]} Bd4+ {[%emt 0:00:26]} 44. Ke2 {[%emt 0:00:26]} Qa5 {[%emt 0:00:41]} 45. Bc4 {[%emt 0:00:37]} Qb6 {[%emt 0:00:37]} 46. Qxf7+ {[%emt 0:00:32]} Kh8 {[%emt 0:00:26]} 47. Qxg6 {[%emt 0:00:52]} Bg7 {[%emt 0:00:36]} 48. Qh5+ {[%emt 0:00:28]} 1-0

[Event "9th RTU Rapid 2019"]
[Site "Riga"]
[Date "2019.08.04"]
[Round "7.26"]
[White "Shailesh, Dravid"]
[Black "Dhyana Patel"]
[Result "1-0"]
[WhiteElo "2134"]
[BlackElo "1900"]
[PlyCount "45"]
[EventDate "2019.08.05"]
[EventType "swiss"]
[EventCountry "LAT"]
[TimeControl "5400+30"]
[WhiteClock "0:03:35"]
[BlackClock "0:12:45"]

1. d4 {[%emt 1:15:39]} Nf6 {[%emt 1:15:21]} 2. Bg5 {[%emt 0:00:26]} Ne4 {[%emt 0:00:27]} 3. Bf4 {[%emt 0:00:26]} d5 {[%emt 0:00:32]} 4. e3 {[%emt 0:00:27]} c5 {[%emt 0:00:53]} 5. Bd3 {[%emt 0:00:26]} Nf6 {[%emt 0:00:37]} 6. Nc3 {[%emt 0:00:44]} Nc6 {[%emt 0:00:50]} 7. Nb5 {[%emt 0:00:34]} Qa5+ {[%emt 0:02:21]} 8. c3 {[%emt 0:00:33]} Kd7 {[%emt 0:02:02]} 9. Bc7 {[%emt 0:01:40]} b6 {[%emt 0:00:46]} 10. dxc5 {[%emt 0:00:30]} Ba6 {[%emt 0:02:15]} 11. a4 {[%emt 0:00:39]} e6 {[%emt 0:01:07]} 12. cxb6 {[%emt 0:00:58]} axb6 {[%emt 0:00:32]} 13. Bg3 {[%emt 0:00:32]} Bxb5 {[%emt 0:02:27]} 14. Bxb5 {[%emt 0:00:28]} Ne4 {[%emt 0:00:37]} 15. Nf3 {[%emt 0:00:33]} Nxg3 {[%emt 0:01:15]} 16. Ne5+ {[%emt 0:00:49]} Kc7 {[%emt 0:01:39]} 17. Nxc6 {[%emt 0:00:28]} Nxh1 {[%emt 0:00:32]} 18. Nxa5 {[%emt 0:00:27]} bxa5 {[%emt 0:00:50]} 19. Ke2 {[%emt 0:00:30]} Nxf2 {[%emt 0:00:28]} 20. Kxf2 {[%emt 0:00:27]} Bc5 {[%emt 0:00:33]} 21. Qg4 {[%emt 0:00:30]} g6 {[%emt 0:00:47]} 22. Qf4+ {[%emt 0:00:27]} Kb6 {[%emt 0:00:34]} 23. b4 {[%emt 0:00:32]} 1-0

[Event "9th RTU Rapid 2019"]
[Site "Riga"]
[Date "2019.08.04"]
[Round "7.27"]
[White "Kretainis, Kristaps"]
[Black "Kolesnikovs, Ivans"]
[Result "1/2-1/2"]
[WhiteElo "2252"]
[BlackElo "2013"]
[PlyCount "83"]
[EventDate "2019.08.05"]
[EventType "swiss"]
[EventCountry "LAT"]
[TimeControl "5400+30"]
[WhiteClock "0:00:28"]
[BlackClock "0:04:29"]

1. Nf3 {[%emt 1:15:21]} Nf6 {[%emt 1:15:29]} 2. g3 {[%emt 0:00:26]} g6 {[%emt 0:00:38]} 3. b3 {[%emt 0:00:26]} Bg7 {[%emt 0:00:40]} 4. Bb2 {[%emt 0:00:26]} O-O {[%emt 0:00:30]} 5. Bg2 {[%emt 0:00:26]} d5 {[%emt 0:00:49]} 6. O-O {[%emt 0:00:27]} c5 {[%emt 0:00:29]} 7. d4 {[%emt 0:00:26]} cxd4 {[%emt 0:00:50]} 8. Nxd4 {[%emt 0:00:42]} Nc6 {[%emt 0:00:30]} 9. c4 {[%emt 0:00:36]} Nxd4 {[%emt 0:02:51]} 10. Bxd4 {[%emt 0:00:28]} dxc4 {[%emt 0:00:49]} 11. bxc4 {[%emt 0:00:32]} Qc7 {[%emt 0:01:10]} 12. Qb3 {[%emt 0:00:23]} Rd8 {[%emt 0:01:07]} 13. Bb2 {[%emt 0:00:26]} Be6 {[%emt 0:02:01]} 14. Na3 {[%emt 0:00:26]} a6 {[%emt 0:01:05]} 15. Rfd1 {[%emt 0:01:07]} Rxd1+ {[%emt 0:01:09]} 16. Rxd1 {[%emt 0:00:27]} Rb8 {[%emt 0:00:29]} 17. Bc1 {[%emt 0:01:01]} Nd7 {[%emt 0:01:26]} 18. Qb4 {[%emt 0:00:33]} Nc5 {[%emt 0:01:00]} 19. Be3 {[%emt 0:02:51]} b6 {[%emt 0:00:46]} 20. Qd2 {[%emt 0:01:41]} Na4 {[%emt 0:01:45]} 21. Bf4 {[%emt 0:03:12]} Be5 {[%emt 0:00:30]} 22. Bxe5 {[%emt 0:00:42]} Qxe5 {[%emt 0:00:26]} 23. Qf4 {[%emt 0:00:32]} Qxf4 {[%emt 0:00:51]} 24. gxf4 {[%emt 0:00:26]} Kf8 {[%emt 0:02:24]} 25. Kf1 {[%emt 0:01:55]} Rc8 {[%emt 0:01:43]} 26. Bb7 {[%emt 0:00:28]} Rc5 {[%emt 0:00:35]} 27. Rd8+ {[%emt 0:00:58]} Kg7 {[%emt 0:00:26]} 28. Bxa6 {[%emt 0:01:52]} Ra5 {[%emt 0:00:31]} 29. Bc8 {[%emt 0:00:26]} Nc5 {[%emt 0:00:34]} 30. Bxe6 {[%emt 0:00:39]} Nxe6 {[%emt 0:00:01]} 31. Rd3 {[%emt 0:00:26]} Nxf4 {[%emt 0:00:55]} 32. Rb3 {[%emt 0:00:27]} Rh5 {[%emt 0:00:54]} 33. e3 {[%emt 0:00:26]} Ne6 {[%emt 0:00:34]} 34. Rxb6 {[%emt 0:00:34]} Rxh2 {[%emt 0:00:29]} 35. Nc2 {[%emt 0:00:34]} Nc5 {[%emt 0:00:29]} 36. Ne1 {[%emt 0:00:58]} Ne4 {[%emt 0:00:32]} 37. Nd3 {[%emt 0:00:26]} Nd2+ {[%emt 0:00:33]} 38. Kg1 {[%emt 0:00:30]} Nf3+ {[%emt 0:00:37]} 39. Kf1 {[%emt 0:00:25]} Nd2+ {[%emt 0:00:26]} 40. Kg1 {[%emt 0:00:26]} Nf3+ {[%emt 0:00:26]} 41. Kf1 {[%emt 0:00:27]} Nd2+ {[%emt 0:00:33]} 42. Kg1 {[%emt 0:00:31]} 1/2-1/2